bitfinex-derivatives/quotes_SOLF0:USTF0_20260203
["timestamp","ask_amount","ask_price","bid_price","bid_amount"]
[1770153335207,84.32284786,101.47,101.4,73.84755058]
[1770153336817,84.32284786,101.47,101.37,73.84755058]
[1770153336818,81.9110605,101.44,101.37,73.84755058]
[1770153337813,81.9110605,101.46,101.37,73.84755058]
[1770153338019,75.44214786,101.46,101.37,73.84755058]
[1770153338715,84.32374786,101.46,101.39,8.8875]
[1770153339418,81.9110605,101.44,101.35,73.84755058]
[1770153339718,75.44214786,101.43,101.35,212.14915058]
[1770153339918,75.44214786,101.43,101.36,73.84755058]
[1770153340721,75.44214786,101.43,101.37,8.8894]
[1770153341120,75.44214786,101.43,101.36,73.84755058]
[1770153341319,81.9110605,101.42,101.34,73.84755058]
[1770153341516,75.44214786,101.42,101.34,73.84755058]
[1770153341722,75.44214786,101.43,101.35,73.84755058]
[1770153342227,138.1583,101.46,101.35,73.84755058]
[1770153342228,81.9110605,101.42,101.35,73.84755058]
[1770153342722,90.7965605,101.42,101.35,73.84755058]
[1770153342924,81.9110605,101.42,101.35,73.84755058]
[1770153343422,81.9110605,101.42,101.35,82.73785058]
[1770153343824,90.7961605,101.42,101.35,82.73785058]
[1770153344124,90.7961605,101.42,101.34,8.892]
[1770153344320,6.46891264,101.4,101.33,467.54755058]
[1770153344531,81.9110605,101.4,101.33,73.84755058]
[1770153344724,81.9110605,101.4,101.33,82.74015058]
[1770153345125,75.44214786,101.4,101.34,73.84755058]
[1770153345724,81.9110605,101.42,101.34,73.84755058]
[1770153346026,75.44214786,101.42,101.35,73.84755058]
[1770153346224,75.44214786,101.42,101.36,73.84755058]
[1770153346526,75.44214786,101.42,101.37,8.8894]
[1770153347123,75.44214786,101.42,101.36,73.84755058]
[1770153347420,6.46891264,101.41,101.34,138.3199]
[1770153347627,81.9110605,101.45,101.37,73.84755058]
[1770153348818,90.7935605,101.45,101.37,73.84755058]
[1770153349027,75.44214786,101.45,101.38,73.84755058]
[1770153349426,75.44214786,101.45,101.38,212.11355058]
[1770153349826,75.44214786,101.45,101.39,212.09785058]
[1770153350725,75.44214786,101.45,101.41,8.8858]
[1770153351425,75.44214786,101.45,101.4,8.8866]
[1770153352321,75.44214786,101.45,101.41,8.8857]
[1770153352919,81.9110605,101.45,101.39,8.8869]
[1770153353427,90.7942605,101.45,101.38,8.8885]
[1770153353628,81.9110605,101.45,101.37,70.45652406]
[1770153354026,71.97909211,101.44,101.37,70.45652406]
[1770153354933,80.86239211,101.44,101.37,70.45652406]
[1770153355128,71.97909211,101.44,101.37,70.45652406]
[1770153355527,71.97909211,101.44,101.37,208.73362406]
[1770153355727,71.97909211,101.44,101.38,74.53409955]
[1770153356230,71.97909211,101.44,101.38,212.79659955]
[1770153356421,69.55639387,101.46,101.39,74.53409955]
[1770153356627,69.55639387,101.46,101.39,212.78629955]
[1770153357230,69.55639387,101.46,101.41,8.8857]
[1770153358834,69.55639387,101.46,101.42,8.8849]
[1770153360334,69.55639387,101.46,101.41,8.8858]
[1770153361128,78.43879387,101.45,101.38,181.53409955]
[1770153361330,84.90770651,101.45,101.36,212.82679955]
[1770153361635,84.90770651,101.45,101.36,319.82679955]
[1770153362535,78.43989387,101.44,101.36,181.53409955]
[1770153362931,76.02530651,101.43,101.36,181.53409955]
[1770153363134,84.90980651,101.43,101.36,83.42439955]
[1770153363434,76.02530651,101.43,101.36,74.53409955]
[1770153364327,76.02530651,101.41,101.35,8.8911]
[1770153364938,84.91130651,101.41,101.34,74.53409955]
[1770153365135,6.46891264,101.39,101.32,468.19409955]
[1770153365439,76.02530651,101.39,101.32,468.19409955]
[1770153365840,76.02530651,101.39,101.32,74.53409955]
[1770153366032,76.02530651,101.41,101.33,74.53409955]
[1770153367242,84.91130651,101.41,101.34,8.892]
[1770153367638,76.02530651,101.41,101.34,74.53409955]
[1770153368139,84.91120651,101.41,101.34,74.53409955]
[1770153368340,6.46891264,101.39,101.33,8.8921]
[1770153368542,76.02530651,101.39,101.33,8.8921]
[1770153368741,76.02530651,101.39,101.32,74.53409955]
[1770153369443,76.02530651,101.39,101.29,393.7]
[1770153369444,76.02530651,101.37,101.29,74.53409955]
[1770153370138,6.46891264,101.36,101.29,181.53409955]
[1770153370539,6.46891264,101.36,101.3,8.8947]
[1770153370733,69.55639387,101.37,101.31,74.53409955]
[1770153370941,76.02530651,101.39,101.31,212.89609955]
[1770153371141,76.02530651,101.39,101.33,8.8929]
[1770153371445,76.02530651,101.39,101.31,181.53409955]
[1770153372542,84.91380651,101.39,101.32,8.8938]
[1770153372945,76.02530651,101.39,101.31,181.53409955]
[1770153373137,15.35851264,101.37,101.31,181.53409955]
[1770153373339,15.35851264,101.37,101.32,74.53409955]
[1770153373641,69.55639387,101.4,101.33,74.53409955]
[1770153373841,69.55639387,101.4,101.34,74.53409955]
[1770153374643,69.55639387,101.4,101.34,83.42609955]
[1770153375343,78.44369387,101.4,101.34,74.53409955]
[1770153376650,78.44369387,101.4,101.34,181.53409955]
[1770153377242,8.8858,101.42,101.35,74.53409955]
[1770153377546,76.02530651,101.42,101.33,74.53409955]
[1770153377946,8.8869,101.4,101.34,8.8919]
[1770153378147,8.8869,101.4,101.33,74.53409955]
[1770153378645,8.8869,101.4,101.33,83.42689955]
[1770153378849,69.55639387,101.39,101.32,74.53409955]
[1770153379051,69.55639387,101.41,101.33,74.53409955]
[1770153379443,69.55639387,101.41,101.33,83.42699955]
[1770153379942,76.02530651,101.35,101.28,74.53409955]
[1770153380549,6.46891264,101.32,101.25,68.74999653]
[1770153380749,77.69878356,101.34,101.25,68.74999653]
[1770153380950,77.69878356,101.34,101.26,68.74999653]
[1770153381252,209.56527092,101.33,101.26,68.74999653]
[1770153381443,216.07598356,101.3,101.21,68.74999653]
[1770153381642,77.69878356,101.26,101.18,68.74999653]
[1770153381841,77.69878356,101.26,101.16,140.27648264]
[1770153381842,6.46891264,101.24,101.16,70.46927917]
[1770153382046,71.22987092,101.26,101.17,68.74999653]
[1770153382550,86.59568356,101.29,101.2,68.74999653]
[1770153382745,224.98888356,101.29,101.2,68.74999653]
[1770153382950,80.12757092,101.28,101.2,68.74999653]
[1770153383349,153.78601264,101.27,101.2,68.74999653]
[1770153383555,216.14398356,101.25,101.17,68.74999653]
[1770153384354,216.14398356,101.25,101.13,68.74999653]
[1770153384355,6.46891264,101.21,101.13,68.74999653]
[1770153385749,77.69878356,101.23,101.14,68.74999653]
[1770153386352,77.69878356,101.21,101.14,68.74999653]
[1770153386857,6.46891264,101.21,101.14,68.74999653]
[1770153387356,77.69878356,101.23,101.14,77.65909653]
[1770153387753,77.69878356,101.23,101.14,68.74999653]
[1770153388255,71.22987092,101.23,101.15,68.74999653]
[1770153388453,6.46891264,101.23,101.15,68.74999653]
[1770153389352,6.46891264,101.21,101.15,68.74999653]
[1770153389756,6.46891264,101.2,101.12,68.74999653]
[1770153389956,71.22987092,101.23,101.13,68.74999653]
[1770153390153,77.69878356,101.22,101.13,68.74999653]
[1770153390348,77.69878356,101.22,101.15,68.74999653]
[1770153390553,373.11878356,101.24,101.16,68.74999653]
[1770153391152,77.69878356,101.24,101.16,68.74999653]
[1770153391458,77.69878356,101.22,101.14,68.74999653]
[1770153392056,77.69878356,101.22,101.14,77.65949653]
[1770153392255,71.22987092,101.22,101.15,207.33119653]
[1770153392457,71.22987092,101.22,101.15,68.74999653]
[1770153392959,71.22987092,101.22,101.15,77.65849653]
[1770153394254,77.69878356,101.22,101.15,77.65849653]
[1770153394657,77.69878356,101.22,101.16,8.9077]
[1770153395452,71.22987092,101.22,101.16,8.9077]
[1770153395663,80.13247092,101.22,101.15,68.74999653]
[1770153395958,77.69878356,101.25,101.17,68.74999653]
[1770153396353,71.22987092,101.25,101.17,68.74999653]
[1770153396562,366.98987092,101.25,101.17,68.74999653]
[1770153396959,71.22987092,101.25,101.17,68.74999653]
[1770153397662,71.22987092,101.25,101.18,8.9061]
[1770153397864,77.72791323,101.28,101.19,207.27349653]
[1770153398062,71.22987092,101.28,101.2,68.74999653]
[1770153398259,71.22987092,101.28,101.21,68.74999653]
[1770153398459,138.3632,101.31,101.23,68.74999653]
[1770153398460,71.22987092,101.31,101.23,68.74999653]
[1770153399158,81.84123187,101.34,101.26,8.8989]
[1770153399366,80.12267092,101.34,101.26,8.8989]
[1770153399858,80.12277092,101.33,101.26,8.8989]
[1770153400660,80.12277092,101.33,101.26,77.64889653]
[1770153400860,71.22987092,101.33,101.26,77.64889653]
[1770153401262,71.22987092,101.33,101.27,8.8982]
[1770153401656,71.22987092,101.33,101.27,77.64819653]
[1770153401862,71.22987092,101.35,101.28,68.74999653]
[1770153402356,71.22987092,101.35,101.29,8.8963]
[1770153402564,71.22987092,101.35,101.28,207.15119653]
[1770153402860,71.22987092,101.35,101.28,68.74999653]
[1770153403059,71.22987092,101.35,101.26,207.17859653]
[1770153403060,77.72791323,101.35,101.26,207.17859653]
[1770153403260,77.72791323,101.35,101.26,68.74999653]
[1770153403457,8.8923,101.34,101.27,8.8982]
[1770153403657,80.12217092,101.34,101.27,8.8982]
[1770153404662,86.62091323,101.33,101.26,68.74999653]
[1770153405259,77.72791323,101.33,101.26,77.64899653]
[1770153407058,86.62101323,101.33,101.26,77.64899653]
[1770153407468,77.72791323,101.33,101.24,77.65039653]
[1770153407863,80.12477092,101.31,101.24,77.65039653]
[1770153408063,77.72791323,101.31,101.22,8.9018]
[1770153408265,71.22987092,101.3,101.22,77.65179653]
[1770153408564,77.72791323,101.29,101.22,68.74999653]
[1770153408771,77.72791323,101.27,101.2,68.74999653]
[1770153409066,86.62611323,101.27,101.2,68.74999653]
[1770153409268,71.22987092,101.24,101.17,68.74999653]
[1770153410064,80.13077092,101.24,101.17,77.65689653]
[1770153410672,6.49804231,101.23,101.17,68.74999653]
[1770153411173,15.39974231,101.23,101.17,68.74999653]
[1770153411372,90.53296931,101.23,101.14,72.2542459]
[1770153411574,81.63126931,101.23,101.16,72.2542459]
[1770153412171,75.133227,101.22,101.13,73.97365596]
[1770153412474,81.63126931,101.22,101.15,8.9085]
[1770153412975,367.29126931,101.24,101.15,72.2542459]
[1770153413168,90.53236931,101.24,101.16,8.9077]
[1770153413370,81.63126931,101.24,101.16,72.2542459]
[1770153413572,75.133227,101.24,101.16,72.2542459]
[1770153413771,75.133227,101.24,101.17,8.9068]
[1770153413967,75.133227,101.24,101.16,72.2542459]
[1770153414170,75.133227,101.25,101.16,72.2542459]
[1770153414472,75.133227,101.25,101.17,80.46049491]
[1770153415672,77.40458578,101.24,101.17,71.55379491]
[1770153415975,86.30538578,101.24,101.17,71.55379491]
[1770153416364,77.40458578,101.24,101.17,71.55379491]
[1770153416974,70.90654347,101.24,101.17,71.55379491]
[1770153417370,79.80774347,101.24,101.17,71.55379491]
[1770153417674,77.40458578,101.23,101.15,71.55379491]
[1770153417868,70.90654347,101.23,101.16,71.55379491]
[1770153418070,70.90654347,101.23,101.17,8.907]
[1770153418976,70.90654347,101.23,101.16,71.55379491]
[1770153418977,79.80844347,101.23,101.16,71.55379491]
[1770153419272,70.90654347,101.23,101.16,71.55379491]
[1770153420068,70.90654347,101.23,101.13,71.55379491]
[1770153420270,70.90654347,101.23,101.17,71.55379491]
[1770153420470,70.90654347,101.25,101.18,210.09279491]
[1770153420676,6.49804231,101.27,101.19,71.55379491]
[1770153421078,86.30288578,101.27,101.19,80.45819491]
[1770153421579,86.30288578,101.27,101.2,8.9042]
[1770153422371,77.40458578,101.24,101.16,71.55379491]
[1770153422575,6.49804231,101.26,101.17,71.55379491]
[1770153422879,70.90654347,101.24,101.17,71.55379491]
[1770153424672,296.1,101.27,101.12,71.55379491]
[1770153424673,70.90654347,101.2,101.12,71.55379491]
[1770153426070,77.40458578,101.23,101.12,71.55379491]
[1770153426380,77.40458578,101.23,101.14,71.55379491]
[1770153426381,70.90654347,101.23,101.14,71.55379491]
[1770153429470,6.49804231,101.25,101.14,71.55379491]
[1770153429677,70.90654347,101.26,101.16,71.55379491]
[1770153430679,70.90654347,101.26,101.17,71.55379491]
[1770153431577,70.90654347,101.28,101.18,71.55379491]
[1770153432273,70.90654347,101.3,101.19,71.55379491]
[1770153432479,70.90654347,101.28,101.19,71.55379491]
[1770153433274,6.49804231,101.29,101.19,71.55379491]
[1770153433574,77.40458578,101.31,101.19,71.55379491]
[1770153433777,6.49804231,101.27,101.19,71.55379491]
[1770153434173,77.40458578,101.27,101.19,71.55379491]
[1770153434682,70.90654347,101.27,101.19,71.55379491]
[1770153435784,77.40458578,101.27,101.19,71.55379491]
[1770153437188,70.90654347,101.27,101.19,71.55379491]
[1770153437883,70.90654347,101.29,101.19,71.55379491]
[1770153440486,70.90654347,101.29,101.2,75.20933693]
[1770153442190,68.34606191,101.27,101.2,75.20933693]
[1770153443085,74.84410422,101.26,101.18,90.52]
[1770153443282,74.84410422,101.26,101.17,75.20933693]
[1770153443482,78.88,101.33,101.17,75.20933693]
[1770153443483,74.84410422,101.24,101.17,75.20933693]
[1770153445395,68.34606191,101.24,101.17,75.20933693]
[1770153445789,68.34606191,101.28,101.18,75.20933693]
[1770153445987,68.34606191,101.28,101.19,75.20933693]
[1770153446895,6.49804231,101.3,101.21,75.20933693]
[1770153446896,68.34606191,101.3,101.21,75.20933693]
[1770153448293,68.34606191,101.3,101.22,75.20933693]
[1770153450691,68.34606191,101.35,101.26,75.20933693]
[1770153450891,74.84410422,101.35,101.26,75.20933693]
[1770153451786,74.84410422,101.33,101.26,75.20933693]
[1770153452297,68.34606191,101.32,101.23,75.20933693]
[1770153452495,68.34606191,101.32,101.22,245.475]
[1770153452496,68.34606191,101.3,101.21,75.20933693]
[1770153452995,74.84410422,101.29,101.21,75.20933693]
[1770153454295,74.84410422,101.27,101.19,75.20933693]
[1770153455094,74.84410422,101.27,101.2,8.9043]
[1770153455294,74.84410422,101.27,101.19,75.20933693]
[1770153455998,83.74310422,101.27,101.19,84.11453693]
[1770153456798,8.8991,101.26,101.19,84.11453693]
[1770153456998,68.34606191,101.26,101.2,8.9043]
[1770153457195,68.34606191,101.26,101.19,75.20933693]
[1770153457396,77.24536191,101.26,101.19,75.20933693]
[1770153457598,74.84410422,101.25,101.17,75.20933693]
[1770153458097,138.4309,101.26,101.16,84.11723693]
[1770153458098,74.84410422,101.23,101.16,84.11723693]
[1770153458600,68.34606191,101.23,101.16,84.11723693]
[1770153459398,68.34606191,101.23,101.14,138.5879]
[1770153459399,68.34606191,101.23,101.17,84.11603693]
[1770153459600,68.34606191,101.23,101.15,75.20933693]
[1770153459897,77.24806191,101.23,101.15,75.20933693]
[1770153460099,74.84654083,101.22,101.15,84.11803693]
[1770153460302,74.84654083,101.22,101.15,75.20933693]
[1770153460501,83.74914083,101.22,101.15,75.20933693]
[1770153461399,74.84654083,101.22,101.15,75.20933693]
[1770153461798,74.84654083,101.22,101.15,84.11803693]
[1770153462792,68.34606191,101.22,101.16,8.9077]
[1770153462993,68.34606191,101.24,101.17,75.20933693]
[1770153463200,68.34606191,101.24,101.18,8.906]
[1770153463401,74.84654083,101.26,101.18,75.20933693]
[1770153464198,68.34606191,101.26,101.2,8.9043]
[1770153464498,74.84654083,101.26,101.19,75.20933693]
[1770153465798,83.74564083,101.26,101.19,84.11423693]
[1770153467605,77.24636191,101.25,101.17,75.20933693]
[1770153468008,74.84654083,101.24,101.17,75.20933693]
[1770153468923,83.74764083,101.24,101.17,75.20933693]
[1770153469114,68.34606191,101.24,101.17,75.20933693]
[1770153469621,83.74564083,101.26,101.19,8.9052]
[1770153470019,68.34606191,101.29,101.21,75.20933693]
[1770153470516,8.8974,101.28,101.21,84.11273693]
[1770153470914,68.34606191,101.29,101.22,8.9024]
[1770153471620,68.34606191,101.29,101.23,8.9015]
[1770153471921,68.34606191,101.29,101.22,213.62839733]
[1770153472122,68.34606191,101.29,101.21,75.14929733]
[1770153472320,68.34606191,101.29,101.22,75.14929733]
[1770153472924,68.34606191,101.29,101.22,84.05149733]
[1770153474021,75.00694246,101.31,101.23,213.62029733]
[1770153474219,75.00694246,101.31,101.24,208.48312871]
[1770153474522,71.66974354,101.33,101.26,8.8989]
[1770153474724,71.66974354,101.33,101.26,78.92472871]
[1770153475922,87.06332246,101.33,101.26,70.02582871]
[1770153476220,78.17022246,101.33,101.23,602.85682871]
[1770153476425,78.17022246,101.31,101.23,70.02582871]
[1770153476621,87.06502246,101.31,101.23,78.92672871]
[1770153477622,80.56454354,101.31,101.23,78.92672871]
[1770153477818,87.06502246,101.31,101.23,70.02582871]
[1770153478325,80.56554354,101.3,101.23,78.92752871]
[1770153480829,78.17022246,101.29,101.21,464.36582871]
[1770153481029,6.50047892,101.27,101.21,70.02582871]
[1770153481330,87.06852246,101.27,101.2,8.9043]
[1770153481625,78.17022246,101.25,101.17,70.02582871]
[1770153481822,78.17022246,101.23,101.17,70.02582871]
[1770153482420,78.17022246,101.23,101.14,138.5821]
[1770153482421,6.50047892,101.21,101.14,70.02582871]
[1770153482621,78.17022246,101.21,101.14,70.02582871]
[1770153482824,78.17022246,101.19,101.12,403.1906]
[1770153483931,78.17022246,101.19,101.12,394.28]
[1770153484225,87.07562246,101.19,101.11,70.02582871]
[1770153485229,87.07562246,101.19,101.11,78.93762871]
[1770153485928,80.57594354,101.18,101.11,70.02582871]
[1770153486124,78.17022246,101.17,101.09,473.25902871]
[1770153486930,78.17022246,101.17,101.09,464.34582871]
[1770153486931,87.07752246,101.17,101.09,464.34582871]
[1770153487133,78.17022246,101.15,101.09,464.34582871]
[1770153487333,78.17022246,101.15,101.09,70.02582871]
[1770153487834,71.66974354,101.19,101.09,70.02582871]
[1770153488129,6.50047892,101.17,101.09,70.02582871]
[1770153488427,6.50047892,101.15,101.09,70.02582871]
[1770153489335,6.50047892,101.15,101.09,78.93982871]
[1770153490635,6.50047892,101.15,101.09,70.02582871]
[1770153490831,71.66974354,101.16,101.09,70.02582871]
[1770153491029,71.66974354,101.18,101.11,208.65752871]
[1770153491223,71.66974354,101.18,101.11,70.02582871]
[1770153491428,78.17022246,101.18,101.11,70.02582871]
[1770153491627,78.17022246,101.18,101.09,70.02582871]
[1770153492730,87.07672246,101.18,101.1,8.9124]
[1770153492932,78.17022246,101.18,101.09,70.02582871]
[1770153493225,71.66974354,101.18,101.11,208.65532871]
[1770153493430,71.66974354,101.18,101.11,70.02582871]
[1770153493737,71.66974354,101.18,101.12,70.02582871]
[1770153493930,71.66974354,101.18,101.13,8.9103]
[1770153494434,71.66974354,101.2,101.13,8.9103]
[1770153495235,71.66974354,101.2,101.14,8.9094]
[1770153495438,71.66974354,101.2,101.12,70.02582871]
[1770153495640,6.50047892,101.19,101.12,70.02582871]
[1770153495832,78.17022246,101.19,101.12,78.93642871]
[1770153496140,78.17022246,101.19,101.1,70.02582871]
[1770153496738,78.17022246,101.17,101.1,70.02582871]
[1770153497835,87.07752246,101.17,101.1,78.93892871]
[1770153498243,87.07752246,101.17,101.07,208.70372871]
[1770153498244,78.17022246,101.17,101.07,208.70372871]
[1770153498440,6.50047892,101.15,101.08,70.02582871]
[1770153499744,6.50047892,101.15,101.09,8.9139]
[1770153500844,91.04124601,101.15,101.09,8.9139]
[1770153501043,82.13234601,101.15,101.09,8.9139]
[1770153503149,82.13234601,101.13,101.06,72.09893223]
[1770153503447,75.63186709,101.12,101.06,72.09893223]
[1770153503642,82.13234601,101.11,101.04,8.9177]
[1770153504142,82.13234601,101.11,101.03,81.01813223]
[1770153504345,82.13234601,101.09,101.03,8.9192]
[1770153504751,82.13234601,101.09,101.01,210.86123223]
[1770153505646,75.63186709,101.09,101.03,72.09893223]
[1770153505845,82.13234601,101.11,101.03,210.84263223]
[1770153506044,82.13234601,101.11,101.04,72.09893223]
[1770153506648,91.04484601,101.11,101.04,72.09893223]
[1770153507243,91.04484601,101.11,101.02,466.83893223]
[1770153507649,82.13234601,101.09,101.02,466.83893223]
[1770153507848,82.13234601,101.11,101.03,72.09893223]
[1770153508550,91.04464601,101.11,101.04,8.9184]
[1770153509044,75.63186709,101.09,101.02,8.9194]
[1770153510446,91.04634601,101.09,101.01,72.09893223]
[1770153510646,91.04634601,101.09,100.98,138.802]
[1770153510647,75.63186709,101.06,100.98,210.90093223]
[1770153510844,75.63186709,101.06,100.99,210.89963223]
[1770153511040,75.63186709,101.06,101.01,8.9208]
[1770153511349,75.63186709,101.08,101.0,210.88463223]
[1770153512142,75.63186709,101.08,101.0,81.02013223]
[1770153512348,82.13234601,101.05,100.98,72.09893223]
[1770153512547,6.50047892,101.04,100.97,72.09893223]
[1770153512850,6.50047892,101.04,100.98,8.9237]
[1770153513650,84.54966709,101.05,100.98,8.9237]
[1770153514249,75.63186709,101.05,100.99,8.9228]
[1770153514448,75.63186709,101.05,100.98,72.09893223]
[1770153515053,75.63186709,101.07,101.0,210.88593223]
[1770153515447,75.63186709,101.07,101.01,72.09893223]
[1770153516751,75.63186709,101.07,101.02,8.9201]
[1770153519651,91.06371493,101.1,101.03,8.9192]
[1770153520055,82.15051493,101.1,101.01,72.09893223]
[1770153520256,75.63186709,101.07,100.98,72.09893223]
[1770153520452,138.6686,101.09,100.98,72.09893223]
[1770153520453,75.63186709,101.05,100.98,72.09893223]
[1770153520849,75.63186709,101.05,101.0,8.9217]
[1770153521059,75.63186709,101.07,100.99,210.89923223]
[1770153521359,75.63186709,101.07,100.99,72.09893223]
[1770153521556,84.54776709,101.07,101.0,8.9219]
[1770153522261,75.63186709,101.07,101.0,72.09893223]
[1770153522657,75.63186709,101.07,100.98,210.91323223]
[1770153522958,82.15051493,101.07,100.98,210.91323223]
[1770153523355,91.06641493,101.07,100.98,210.91323223]
[1770153523758,82.15051493,101.07,100.98,72.09893223]
[1770153523958,75.63186709,101.05,100.99,8.9228]
[1770153524160,82.15051493,101.05,100.98,72.09893223]
[1770153524659,82.15051493,101.05,100.96,72.09893223]
[1770153525263,82.15051493,101.05,100.98,72.09893223]
[1770153526657,91.06821493,101.05,100.98,81.02263223]
[1770153528157,84.55056709,101.04,100.97,8.9246]
[1770153528359,75.63186709,101.02,100.94,72.09893223]
[1770153528563,75.63186709,101.02,100.95,72.09893223]
[1770153529758,75.63186709,101.02,100.96,8.9255]
[1770153530057,75.63186709,101.02,100.96,72.09893223]
[1770153530265,75.63186709,101.02,100.97,8.9244]
[1770153530457,421.9361,101.07,100.97,72.09893223]
[1770153530458,75.63186709,101.04,100.97,72.09893223]
[1770153530855,75.63186709,101.04,100.98,8.9236]
[1770153531064,75.63186709,101.04,100.97,72.09893223]
[1770153531654,78.18920696,101.1,101.01,72.63655522]
[1770153531860,78.18920696,101.1,101.02,72.63655522]
[1770153532260,78.18920696,101.1,101.0,395.12]
[1770153532261,6.51864784,101.08,101.0,395.12]
[1770153532462,71.67055912,101.07,101.0,395.12]
[1770153532666,71.67055912,101.07,100.99,72.63655522]
[1770153533266,71.67055912,101.07,101.0,72.63655522]
[1770153533562,71.67055912,101.07,101.0,211.42295522]
[1770153533762,71.67055912,101.07,101.0,72.63655522]
[1770153533970,71.67055912,101.05,100.98,72.63655522]
[1770153534267,71.67055912,101.05,100.98,81.55945522]
[1770153534764,71.67055912,101.05,100.98,72.63655522]
[1770153535066,71.67055912,101.05,100.99,71.08623662]
[1770153535663,74.18548855,101.08,101.0,209.87083662]
[1770153536167,74.18548855,101.08,101.01,71.08623662]
[1770153536764,74.18548855,101.08,101.02,8.9201]
[1770153537169,74.18548855,101.08,101.01,71.08623662]
[1770153537465,80.70413639,101.06,100.99,71.08623662]
[1770153538467,80.70413639,101.06,100.98,395.14]
[1770153538972,80.70413639,101.06,100.99,8.9227]
[1770153539474,89.62083639,101.06,100.97,80.01003662]
[1770153539678,6.51864784,101.04,100.97,209.91203662]
[1770153539878,80.70413639,101.06,100.98,209.90073662]
[1770153540175,80.70413639,101.06,100.99,138.7973]
[1770153540374,74.18548855,101.06,101.0,71.08623662]
[1770153540683,74.18548855,101.06,101.0,466.20623662]
[1770153541081,74.18548855,101.06,101.01,8.9211]
[1770153542776,74.18548855,101.06,101.0,466.20623662]
[1770153542980,80.70413639,101.06,100.98,209.90073662]
[1770153543178,80.70413639,101.06,100.99,209.88673662]
[1770153543374,74.18548855,101.06,101.01,8.921]
[1770153543883,74.18548855,101.06,101.0,533.9045]
[1770153544182,74.18548855,101.06,101.0,542.8256]
[1770153544375,74.18548855,101.08,101.01,209.85913662]
[1770153544582,74.18548855,101.08,101.02,71.08623662]
[1770153545083,80.70413639,101.1,101.02,71.08623662]
[1770153545480,80.70413639,101.1,101.03,8.9193]
[1770153545879,80.70413639,101.1,101.02,71.08623662]
[1770153546080,80.70413639,101.1,101.01,209.85773662]
[1770153546281,89.61733639,101.1,101.02,8.9201]
[1770153546677,8.9143,101.09,101.01,71.08623662]
[1770153546882,83.09978855,101.09,101.01,71.08623662]
[1770153547383,74.18548855,101.09,101.01,209.85823662]
[1770153548786,74.18548855,101.09,101.01,71.08623662]
[1770153548981,74.18548855,101.09,101.01,209.85833662]
[1770153550081,80.70413639,101.08,101.01,71.08623662]
[1770153551388,6.51864784,101.06,100.99,604.98673662]
[1770153551887,80.70413639,101.06,100.99,466.18623662]
[1770153552387,80.70413639,101.06,101.01,8.9204]
[1770153552587,74.18548855,101.06,101.01,8.9204]
[1770153552883,80.70413639,101.08,101.01,71.08623662]
[1770153553082,74.18548855,101.11,101.03,71.08623662]
[1770153553281,74.18548855,101.11,101.03,466.18623662]
[1770153553681,74.18548855,101.11,101.03,71.08623662]
[1770153553880,83.09858855,101.11,101.04,8.9184]
[1770153554079,74.18548855,101.11,101.04,8.9184]
[1770153554279,80.70413639,101.1,101.03,466.18623662]
[1770153554484,80.70413639,101.08,101.03,395.1]
[1770153554780,80.70413639,101.08,101.0,466.18623662]
[1770153554986,6.51864784,101.06,101.01,8.9211]
[1770153555290,80.70413639,101.06,101.01,8.9211]
[1770153556390,74.18548855,101.08,101.02,71.08623662]
[1770153556692,74.18548855,101.08,101.02,466.16623662]
[1770153556881,74.18548855,101.08,101.03,8.9192]
[1770153558190,74.18548855,101.08,101.02,475.08633662]
[1770153558684,74.18548855,101.08,101.02,8.9201]
[1770153558987,80.70413639,101.05,100.98,71.08623662]
[1770153559187,80.70413639,101.03,100.96,71.08623662]
[1770153559395,80.70413639,101.03,100.94,156.75304421]
[1770153559396,80.70413639,101.01,100.94,83.03901671]
[1770153559587,80.70413639,101.01,100.94,71.08623662]
[1770153559791,80.70413639,101.01,100.95,209.93983662]
[1770153560086,74.18548855,101.01,100.95,605.01983662]
[1770153560689,74.18548855,101.01,100.95,613.94533662]
[1770153560889,75.00127765,101.03,100.96,73.29000878]
[1770153561288,75.00127765,101.03,100.96,82.21540878]
[1770153561993,68.48262981,101.03,100.97,82.21460878]
[1770153562592,68.48262981,101.06,100.97,73.29000878]
[1770153562793,75.00127765,101.06,100.98,468.41000878]
[1770153563088,75.00127765,101.06,100.99,73.29000878]
[1770153563287,68.48262981,101.06,101.0,468.41000878]
[1770153564893,68.48262981,101.06,101.0,73.29000878]
[1770153565092,68.48262981,101.06,101.01,395.16]
[1770153566098,8.9158,101.07,101.01,395.16]
[1770153566793,75.00127765,101.08,101.01,395.16]
[1770153568199,75.00127765,101.08,101.02,73.29000878]
[1770153569797,83.91637765,101.08,101.02,73.29000878]
[1770153569998,83.91637765,101.08,101.01,395.16]
[1770153569999,75.00127765,101.08,101.01,395.16]
[1770153570297,6.51864784,101.06,101.01,395.16]
[1770153570489,6.51864784,101.06,101.01,404.0811]
[1770153570688,68.48262981,101.07,101.01,477.37110878]
[1770153571699,68.48262981,101.07,101.02,8.9202]